[Event "Titled Tuesday Blitz March 14 Early 2023"]
[White "Ozates, Tuna"]
[Black "Mirzanurov, Bulat"]
[WhiteFideId "6354521"]
[BlackFideId "4184521"]
[WhiteElo "2151"]
[BlackElo "2019"]
[Result "1-0"]
[Round "03"]
[TimeControl "180+2"]
[Date "2023.03.14"]
[WhiteClock "0:00:34"]
[BlackClock "0:00:14"]

1. d4 {[%clk 0:02:53]}  d5 {[%clk 0:02:59]} 2. c4 {[%clk 0:02:51]}  dxc4 {[%clk 0:03:00]} 3. e3 {[%clk 0:02:51]}  e6 {[%clk 0:03:00]} 4. Bxc4 {[%clk 0:02:50]}  c5 {[%clk 0:03:00]} 5. Nc3 {[%clk 0:02:50]}  a6 {[%clk 0:02:49]} 6. a4 {[%clk 0:02:49]}  Nc6 {[%clk 0:02:47]} 7. Nf3 {[%clk 0:02:49]}  Nf6 {[%clk 0:02:47]} 8. O-O {[%clk 0:02:49]}  Be7 {[%clk 0:02:45]} 9. Qe2 {[%clk 0:02:49]}  Qc7 {[%clk 0:02:44]} 10. Rd1 {[%clk 0:02:47]}  O-O {[%clk 0:02:44]} 11. dxc5 {[%clk 0:02:44]}  Bxc5 {[%clk 0:02:43]} 12. e4 {[%clk 0:02:45]}  e5 {[%clk 0:02:39]} 13. Bg5 {[%clk 0:02:39]}  Nd4 {[%clk 0:02:03]} 14. Nxd4 {[%clk 0:02:37]}  Bxd4 {[%clk 0:02:04]} 15. Bxf6 {[%clk 0:02:35]}  gxf6 {[%clk 0:02:05]} 16. Nd5 {[%clk 0:02:31]}  Qd6 {[%clk 0:02:04]} 17. Ra3 {[%clk 0:02:27]}  Kh8 {[%clk 0:01:55]} 18. Rg3 {[%clk 0:02:16]}  Be6 {[%clk 0:01:49]} 19. Ne3 {[%clk 0:01:52]}  Rg8 {[%clk 0:01:39]} 20. Bxe6 {[%clk 0:01:39]}  fxe6 {[%clk 0:01:38]} 21. Rh3 {[%clk 0:01:35]}  Rg7 {[%clk 0:01:31]} 22. Qf3 {[%clk 0:01:33]}  Qe7 {[%clk 0:01:15]} 23. g3 {[%clk 0:01:23]}  Bxb2 {[%clk 0:01:09]} 24. Rh6 {[%clk 0:01:22]}  Rg6 {[%clk 0:01:04]} 25. Rxg6 {[%clk 0:01:17]}  hxg6 {[%clk 0:01:05]} 26. h4 {[%clk 0:01:17]}  Kg7 {[%clk 0:01:02]} 27. Ng4 {[%clk 0:01:12]}  Bd4 {[%clk 0:00:57]} 28. Rc1 {[%clk 0:01:11]}  Rf8 {[%clk 0:00:46]} 29. h5 {[%clk 0:01:08]}  g5 {[%clk 0:00:44]} 30. h6+ {[%clk 0:01:05]}  Kg6 {[%clk 0:00:43]} 31. Kg2 {[%clk 0:01:03]}  Kh7 {[%clk 0:00:31]} 32. a5 {[%clk 0:00:47]}  Kg6 {[%clk 0:00:26]} 33. h7 {[%clk 0:00:42]}  Qxh7 {[%clk 0:00:25]} 34. Rh1 {[%clk 0:00:41]}  Qe7 {[%clk 0:00:24]} 35. Nxf6 {[%clk 0:00:34]}  Rxf6 {[%clk 0:00:17]} 36. Qh5+ {[%clk 0:00:34]}  Kg7 {[%clk 0:00:15]} 37. Qh8+ {[%clk 0:00:34]}  Kf7 {[%clk 0:00:15]} 38. Rh7+ {[%clk 0:00:34]}  Kg6 {[%clk 0:00:14]} 39. Qg8+ {[%clk 0:00:34]} 1-0


[Site "https://www.chess.com"]

[Event "Titled Tuesday Blitz March 14 Early 2023"]
[White "Bas Mas, Jose Joaquin"]
[Black "Weetik, Vjacheslav"]
[WhiteFideId "22219064"]
[BlackFideId "4153472"]
[WhiteElo "2233"]
[BlackElo "2469"]
[Result "1-0"]
[Round "03"]
[TimeControl "180+2"]
[Date "2023.03.14"]
[WhiteClock "0:00:36"]
[BlackClock "0:00:01"]

1. e4 {[%clk 0:03:00]}  c6 {[%clk 0:02:59]} 2. d4 {[%clk 0:03:00]}  d5 {[%clk 0:03:00]} 3. f3 {[%clk 0:03:01]}  dxe4 {[%clk 0:02:59]} 4. fxe4 {[%clk 0:03:01]}  e5 {[%clk 0:03:00]} 5. Nf3 {[%clk 0:03:01]}  Bg4 {[%clk 0:03:00]} 6. Bc4 {[%clk 0:03:01]}  Nd7 {[%clk 0:02:53]} 7. O-O {[%clk 0:03:01]}  Bd6 {[%clk 0:02:39]} 8. Bxf7+ {[%clk 0:02:53]}  Ke7 {[%clk 0:01:36]} 9. Bxg8 {[%clk 0:02:27]}  Rxg8 {[%clk 0:01:30]} 10. Bg5+ {[%clk 0:02:26]}  Nf6 {[%clk 0:01:30]} 11. dxe5 {[%clk 0:02:26]}  Qb6+ {[%clk 0:01:29]} 12. Kh1 {[%clk 0:02:24]}  Bxe5 {[%clk 0:01:29]} 13. Nbd2 {[%clk 0:02:11]}  Rad8 {[%clk 0:00:55]} 14. Qe1 {[%clk 0:02:10]}  Qxb2 {[%clk 0:00:23]} 15. Rb1 {[%clk 0:02:05]}  Qc3 {[%clk 0:00:20]} 16. Rb3 {[%clk 0:01:41]}  Qc5 {[%clk 0:00:11]} 17. Rxb7+ {[%clk 0:01:32]}  Rd7 {[%clk 0:00:11]} 18. Nb3 {[%clk 0:01:27]}  Qc3 {[%clk 0:00:05]} 19. Nxe5 {[%clk 0:01:07]}  Qxe5 {[%clk 0:00:05]} 20. Qb4+ {[%clk 0:00:50]}  Kf7 {[%clk 0:00:01]} 21. Rxd7+ {[%clk 0:00:46]}  Bxd7 {[%clk 0:00:02]} 22. Qc4+ {[%clk 0:00:43]}  Kg6 {[%clk 0:00:02]} 23. Bxf6 {[%clk 0:00:41]}  Be6 {[%clk 0:00:01]} 24. Bxe5 {[%clk 0:00:37]}  Bxc4 {[%clk 0:00:02]} 25. Re1 {[%clk 0:00:37]}  Re8 {[%clk 0:00:01]} 26. Bd4 {[%clk 0:00:36]} 1-0


[Site "https://www.chess.com"]

[Event "Titled Tuesday Blitz March 14 Early 2023"]
[White "Fiorito, Francisco"]
[Black "Sarkar, Justin"]
[WhiteFideId "180165"]
[BlackFideId "2010011"]
[WhiteElo "2341"]
[BlackElo "2189"]
[Result "1-0"]
[Round "03"]
[TimeControl "180+2"]
[Date "2023.03.14"]
[WhiteClock "0:00:11"]
[BlackClock "0:00:02"]

1. d4 {[%clk 0:03:00]}  Nf6 {[%clk 0:02:55]} 2. Nc3 {[%clk 0:03:00]}  d5 {[%clk 0:02:50]} 3. Bf4 {[%clk 0:03:00]}  c5 {[%clk 0:02:37]} 4. e3 {[%clk 0:02:57]}  a6 {[%clk 0:02:37]} 5. dxc5 {[%clk 0:02:57]}  e6 {[%clk 0:02:35]} 6. Na4 {[%clk 0:02:56]}  Bxc5 {[%clk 0:02:34]} 7. Nxc5 {[%clk 0:02:56]}  Qa5+ {[%clk 0:02:34]} 8. c3 {[%clk 0:02:56]}  Qxc5 {[%clk 0:02:35]} 9. Nf3 {[%clk 0:02:54]}  Nc6 {[%clk 0:02:31]} 10. Be2 {[%clk 0:02:53]}  O-O {[%clk 0:02:22]} 11. O-O {[%clk 0:02:48]}  Qe7 {[%clk 0:02:17]} 12. Ne5 {[%clk 0:02:48]}  Nxe5 {[%clk 0:02:14]} 13. Bxe5 {[%clk 0:02:49]}  Bd7 {[%clk 0:02:08]} 14. Qd4 {[%clk 0:02:48]}  Bc6 {[%clk 0:02:02]} 15. Bf3 {[%clk 0:02:41]}  Rfd8 {[%clk 0:02:00]} 16. Rfd1 {[%clk 0:02:38]}  Ne8 {[%clk 0:01:51]} 17. Bg3 {[%clk 0:02:32]}  f6 {[%clk 0:01:47]} 18. Qb6 {[%clk 0:01:58]}  Nd6 {[%clk 0:01:41]} 19. b3 {[%clk 0:01:47]}  Rac8 {[%clk 0:01:28]} 20. Rac1 {[%clk 0:01:44]}  Nf5 {[%clk 0:01:19]} 21. Bg4 {[%clk 0:01:21]}  Nxg3 {[%clk 0:00:55]} 22. hxg3 {[%clk 0:01:20]}  Kf7 {[%clk 0:00:54]} 23. c4 {[%clk 0:01:13]}  dxc4 {[%clk 0:00:47]} 24. bxc4 {[%clk 0:01:14]}  Rxd1+ {[%clk 0:00:39]} 25. Rxd1 {[%clk 0:01:14]}  Rc7 {[%clk 0:00:37]} 26. Rd4 {[%clk 0:00:29]}  Rd7 {[%clk 0:00:32]} 27. Kh2 {[%clk 0:00:25]}  f5 {[%clk 0:00:28]} 28. Be2 {[%clk 0:00:19]}  e5 {[%clk 0:00:25]} 29. Rxd7 {[%clk 0:00:18]}  Qxd7 {[%clk 0:00:25]} 30. Qc5 {[%clk 0:00:17]}  Qd2 {[%clk 0:00:20]} 31. Bh5+ {[%clk 0:00:11]}  g6 {[%clk 0:00:19]} 32. Qxe5 {[%clk 0:00:11]}  Qxf2 {[%clk 0:00:13]} 33. Qc7+ {[%clk 0:00:12]}  Kf6 {[%clk 0:00:08]} 34. Qd6+ {[%clk 0:00:11]}  Kg7 {[%clk 0:00:08]} 35. Qe5+ {[%clk 0:00:02]}  Kh6 {[%clk 0:00:07]} 36. Bf3 {[%clk 0:00:01]}  Bxf3 {[%clk 0:00:06]} 37. Qf4+ {[%clk 0:00:02]}  Kg7 {[%clk 0:00:05]} 38. Qc7+ {[%clk 0:00:02]}  Kh6 {[%clk 0:00:04]} 39. Qf4+ {[%clk 0:00:02]}  g5 {[%clk 0:00:03]} 40. Qxf3 {[%clk 0:00:01]}  Qxf3 {[%clk 0:00:03]} 41. gxf3 {[%clk 0:00:02]}  Kg6 {[%clk 0:00:03]} 42. Kg2 {[%clk 0:00:03]}  h5 {[%clk 0:00:03]} 43. Kh3 {[%clk 0:00:02]}  Kf6 {[%clk 0:00:03]} 44. f4 {[%clk 0:00:03]}  Kg6 {[%clk 0:00:02]} 45. Kh2 {[%clk 0:00:03]}  Kf6 {[%clk 0:00:02]} 46. Kg2 {[%clk 0:00:03]}  Kg6 {[%clk 0:00:02]} 47. a3 {[%clk 0:00:03]}  Kf6 {[%clk 0:00:02]} 48. a4 {[%clk 0:00:04]}  a5 {[%clk 0:00:01]} 49. Kh3 {[%clk 0:00:04]}  b6 {[%clk 0:00:01]} 50. Kh2 {[%clk 0:00:04]}  Kg6 {[%clk 0:00:01]} 51. Kg2 {[%clk 0:00:04]}  Kf6 {[%clk 0:00:02]} 52. Kf2 {[%clk 0:00:05]}  Kg6 {[%clk 0:00:02]} 53. Kf3 {[%clk 0:00:05]}  Kh6 {[%clk 0:00:02]} 54. Kf2 {[%clk 0:00:04]}  Kg6 {[%clk 0:00:02]} 55. Ke2 {[%clk 0:00:05]}  Kh6 {[%clk 0:00:02]} 56. Kd3 {[%clk 0:00:05]}  h4 {[%clk 0:00:02]} 57. gxh4 {[%clk 0:00:06]}  gxh4 {[%clk 0:00:02]} 58. Ke2 {[%clk 0:00:06]}  Kh5 {[%clk 0:00:01]} 59. Kf3 {[%clk 0:00:07]}  h3 {[%clk 0:00:01]} 60. Kg3 {[%clk 0:00:07]}  h2 {[%clk 0:00:01]} 61. Kxh2 {[%clk 0:00:08]}  Kh4 {[%clk 0:00:02]} 62. Kg2 {[%clk 0:00:08]}  Kg4 {[%clk 0:00:02]} 63. Kf2 {[%clk 0:00:09]}  Kh4 {[%clk 0:00:02]} 64. Kf3 {[%clk 0:00:10]}  Kh3 {[%clk 0:00:02]} 65. e4 {[%clk 0:00:11]} 1-0


[Site "https://www.chess.com"]

[Event "Titled Tuesday Blitz March 14 Early 2023"]
[White "Manon-og, Ramon Jr."]
[Black "Shuvalova, Polina"]
[WhiteFideId "5200776"]
[BlackFideId "24171760"]
[WhiteElo "2336"]
[BlackElo "2297"]
[Result "0-1"]
[Round "03"]
[TimeControl "180+2"]
[Date "2023.03.14"]
[WhiteClock "0:00:09"]
[BlackClock "0:01:05"]

1. e4 {[%clk 0:03:00]}  c6 {[%clk 0:02:58]} 2. d4 {[%clk 0:02:59]}  d5 {[%clk 0:02:58]} 3. e5 {[%clk 0:03:00]}  Bf5 {[%clk 0:02:57]} 4. Nd2 {[%clk 0:03:01]}  e6 {[%clk 0:02:56]} 5. Nb3 {[%clk 0:03:01]}  h6 {[%clk 0:02:55]} 6. Nf3 {[%clk 0:03:02]}  Ne7 {[%clk 0:02:55]} 7. Be2 {[%clk 0:03:02]}  Nd7 {[%clk 0:02:54]} 8. O-O {[%clk 0:03:02]}  Ng6 {[%clk 0:02:52]} 9. c4 {[%clk 0:03:02]}  f6 {[%clk 0:02:52]} 10. exf6 {[%clk 0:03:02]}  Qxf6 {[%clk 0:02:53]} 11. cxd5 {[%clk 0:03:02]}  exd5 {[%clk 0:02:52]} 12. Bd3 {[%clk 0:03:01]}  Be7 {[%clk 0:02:51]} 13. Qc2 {[%clk 0:03:01]}  Bxd3 {[%clk 0:02:51]} 14. Qxd3 {[%clk 0:03:02]}  O-O {[%clk 0:02:51]} 15. Bd2 {[%clk 0:02:57]}  Bd6 {[%clk 0:02:50]} 16. Rae1 {[%clk 0:02:51]}  Nf4 {[%clk 0:02:50]} 17. Bxf4 {[%clk 0:02:51]}  Qxf4 {[%clk 0:02:51]} 18. Re6 {[%clk 0:02:47]}  Rf6 {[%clk 0:02:50]} 19. Rfe1 {[%clk 0:02:45]}  Raf8 {[%clk 0:02:49]} 20. Rxf6 {[%clk 0:02:32]}  Nxf6 {[%clk 0:02:48]} 21. g3 {[%clk 0:02:10]}  Qg4 {[%clk 0:02:47]} 22. Ne5 {[%clk 0:02:09]}  Bxe5 {[%clk 0:02:44]} 23. dxe5 {[%clk 0:02:10]}  Ne4 {[%clk 0:02:43]} 24. Re2 {[%clk 0:02:00]}  Rf3 {[%clk 0:02:42]} 25. Qc2 {[%clk 0:01:50]}  Rf5 {[%clk 0:02:29]} 26. e6 {[%clk 0:01:42]}  Rh5 {[%clk 0:02:20]} 27. Qd3 {[%clk 0:01:16]}  Qh3 {[%clk 0:01:43]} 28. f4 {[%clk 0:01:13]}  Qxe6 {[%clk 0:01:41]} 29. Nc5 {[%clk 0:01:05]}  Nxc5 {[%clk 0:01:36]} 30. Qf3 {[%clk 0:00:56]}  Qf7 {[%clk 0:01:32]} 31. Qg4 {[%clk 0:00:47]}  Rf5 {[%clk 0:01:30]} 32. Qh4 {[%clk 0:00:43]}  Rf6 {[%clk 0:01:24]} 33. Qg4 {[%clk 0:00:31]}  Ne4 {[%clk 0:01:24]} 34. Qc8+ {[%clk 0:00:25]}  Kh7 {[%clk 0:01:24]} 35. Kg2 {[%clk 0:00:25]}  g5 {[%clk 0:01:22]} 36. fxg5 {[%clk 0:00:17]}  hxg5 {[%clk 0:01:23]} 37. Qh3+ {[%clk 0:00:16]}  Kg7 {[%clk 0:01:23]} 38. Qg4 {[%clk 0:00:15]}  Rf2+ {[%clk 0:01:23]} 39. Kg1 {[%clk 0:00:13]}  Rf1+ {[%clk 0:01:05]} 40. Kg2 {[%clk 0:00:09]}  Rb1 {[%clk 0:01:05]} 0-1


[Site "https://www.chess.com"]

[Event "Titled Tuesday Blitz March 14 Early 2023"]
[White "Bolanos, Fernando"]
[Black "Kim, Sergey"]
[WhiteFideId "3304094"]
[BlackFideId "13700570"]
[WhiteElo "2166"]
[BlackElo "2626"]
[Result "0-1"]
[Round "03"]
[TimeControl "180+2"]
[Date "2023.03.14"]
[WhiteClock "0:00:03"]
[BlackClock "0:00:54"]

1. e4 {[%clk 0:02:51]}  e5 {[%clk 0:02:59]} 2. Nf3 {[%clk 0:02:51]}  Nc6 {[%clk 0:03:00]} 3. Bc4 {[%clk 0:02:51]}  Bc5 {[%clk 0:02:59]} 4. O-O {[%clk 0:02:51]}  Nf6 {[%clk 0:02:59]} 5. d3 {[%clk 0:02:51]}  O-O {[%clk 0:02:59]} 6. h3 {[%clk 0:02:51]}  d6 {[%clk 0:02:57]} 7. c3 {[%clk 0:02:51]}  a6 {[%clk 0:02:58]} 8. a4 {[%clk 0:02:51]}  Ba7 {[%clk 0:02:58]} 9. Nbd2 {[%clk 0:02:43]}  Nh5 {[%clk 0:02:56]} 10. Nxe5 {[%clk 0:02:30]}  Nxe5 {[%clk 0:02:56]} 11. Qxh5 {[%clk 0:02:30]}  Nxc4 {[%clk 0:02:56]} 12. Nxc4 {[%clk 0:02:30]}  f5 {[%clk 0:02:56]} 13. Be3 {[%clk 0:02:28]}  fxe4 {[%clk 0:02:49]} 14. Bxa7 {[%clk 0:02:21]}  Rxa7 {[%clk 0:02:48]} 15. dxe4 {[%clk 0:02:22]}  Be6 {[%clk 0:02:48]} 16. Ne3 {[%clk 0:02:22]}  Ra8 {[%clk 0:02:40]} 17. Rae1 {[%clk 0:02:12]}  Qe7 {[%clk 0:02:29]} 18. Nd5 {[%clk 0:01:38]}  Qd7 {[%clk 0:02:27]} 19. b3 {[%clk 0:01:39]}  Rae8 {[%clk 0:02:24]} 20. c4 {[%clk 0:01:38]}  c6 {[%clk 0:02:23]} 21. Ne3 {[%clk 0:01:36]}  Qc7 {[%clk 0:02:20]} 22. f3 {[%clk 0:01:35]}  Qb6 {[%clk 0:02:19]} 23. e5 {[%clk 0:01:01]}  dxe5 {[%clk 0:02:11]} 24. Qxe5 {[%clk 0:01:01]}  Bxc4 {[%clk 0:02:04]} 25. a5 {[%clk 0:00:40]}  Rxe5 {[%clk 0:02:00]} 26. axb6 {[%clk 0:00:40]}  Bxf1 {[%clk 0:02:00]} 27. Kxf1 {[%clk 0:00:40]}  Rfe8 {[%clk 0:01:58]} 28. Kf2 {[%clk 0:00:40]}  Rb5 {[%clk 0:01:58]} 29. Rd1 {[%clk 0:00:38]}  Rxb3 {[%clk 0:01:52]} 30. Nf5 {[%clk 0:00:38]}  g6 {[%clk 0:01:44]} 31. Nh6+ {[%clk 0:00:22]}  Kg7 {[%clk 0:01:41]} 32. Ng4 {[%clk 0:00:22]}  Re7 {[%clk 0:01:40]} 33. f4 {[%clk 0:00:21]}  Rxb6 {[%clk 0:01:36]} 34. Ne5 {[%clk 0:00:21]}  Rb5 {[%clk 0:01:32]} 35. g4 {[%clk 0:00:19]}  a5 {[%clk 0:01:31]} 36. h4 {[%clk 0:00:17]}  a4 {[%clk 0:01:31]} 37. h5 {[%clk 0:00:17]}  a3 {[%clk 0:01:29]} 38. g5 {[%clk 0:00:10]}  gxh5 {[%clk 0:01:26]} 39. Nf3 {[%clk 0:00:06]}  a2 {[%clk 0:01:24]} 40. f5 {[%clk 0:00:06]}  Kf8 {[%clk 0:01:02]} 41. f6 {[%clk 0:00:05]}  Re8 {[%clk 0:01:01]} 42. Kg3 {[%clk 0:00:02]}  Rb1 {[%clk 0:00:56]} 43. Rd7 {[%clk 0:00:02]}  a1=Q {[%clk 0:00:56]} 44. Rxh7 {[%clk 0:00:03]}  Rg1+ {[%clk 0:00:55]} 45. Nxg1 {[%clk 0:00:03]}  Qxg1+ {[%clk 0:00:55]} 46. Kf4 {[%clk 0:00:03]}  Qg4# {[%clk 0:00:54]} 0-1


[Site "https://www.chess.com"]

[Event "Titled Tuesday Blitz March 14 Early 2023"]
[White "Martin, Lewis"]
[Black "polandchessplayer"]
[WhiteFideId "410551"]
[WhiteElo "2145"]
[BlackElo "2607"]
[Result "0-1"]
[Round "03"]
[TimeControl "180+2"]
[Date "2023.03.14"]
[WhiteClock "0:00:38"]
[BlackClock "0:01:44"]

1. e4 {[%clk 0:03:00]}  c6 {[%clk 0:03:00]} 2. d4 {[%clk 0:03:00]}  d5 {[%clk 0:03:00]} 3. Nc3 {[%clk 0:02:58]}  dxe4 {[%clk 0:03:00]} 4. Nxe4 {[%clk 0:02:59]}  Nf6 {[%clk 0:03:01]} 5. Nxf6+ {[%clk 0:02:57]}  exf6 {[%clk 0:03:02]} 6. c3 {[%clk 0:02:57]}  Bd6 {[%clk 0:03:03]} 7. Qc2 {[%clk 0:02:55]}  O-O {[%clk 0:03:04]} 8. Bd3 {[%clk 0:02:55]}  h5 {[%clk 0:03:04]} 9. Ne2 {[%clk 0:02:55]}  h4 {[%clk 0:03:02]} 10. Be3 {[%clk 0:02:51]}  Re8 {[%clk 0:03:01]} 11. O-O-O {[%clk 0:02:51]}  Be6 {[%clk 0:03:00]} 12. Kb1 {[%clk 0:02:50]}  Nd7 {[%clk 0:02:59]} 13. g3 {[%clk 0:02:33]}  h3 {[%clk 0:02:58]} 14. Bf5 {[%clk 0:02:30]}  Nb6 {[%clk 0:02:56]} 15. Bxe6 {[%clk 0:02:29]}  Rxe6 {[%clk 0:02:56]} 16. Nf4 {[%clk 0:02:27]}  Bxf4 {[%clk 0:02:56]} 17. Bxf4 {[%clk 0:02:27]}  Nd5 {[%clk 0:02:56]} 18. Bc1 {[%clk 0:02:25]}  Qe7 {[%clk 0:02:49]} 19. a3 {[%clk 0:02:19]}  Re8 {[%clk 0:02:47]} 20. c4 {[%clk 0:02:17]}  Nb6 {[%clk 0:02:45]} 21. Be3 {[%clk 0:02:07]}  Re4 {[%clk 0:02:40]} 22. Rhe1 {[%clk 0:02:03]}  Qe6 {[%clk 0:02:39]} 23. b3 {[%clk 0:02:01]}  a5 {[%clk 0:02:38]} 24. a4 {[%clk 0:02:00]}  f5 {[%clk 0:02:34]} 25. Qc3 {[%clk 0:01:51]}  Nd7 {[%clk 0:02:17]} 26. Qxa5 {[%clk 0:01:48]}  Nf6 {[%clk 0:02:17]} 27. Qc3 {[%clk 0:01:36]}  Ng4 {[%clk 0:02:15]} 28. Bd2 {[%clk 0:01:33]}  Nxh2 {[%clk 0:02:13]} 29. Rh1 {[%clk 0:01:28]}  Ng4 {[%clk 0:02:11]} 30. Rxh3 {[%clk 0:01:28]}  Nxf2 {[%clk 0:02:09]} 31. Rdh1 {[%clk 0:01:25]}  Nxh1 {[%clk 0:02:05]} 32. Rxh1 {[%clk 0:01:24]}  Re2 {[%clk 0:02:06]} 33. Rh4 {[%clk 0:01:19]}  f6 {[%clk 0:02:00]} 34. Qd3 {[%clk 0:01:03]}  Rg2 {[%clk 0:01:57]} 35. Qf3 {[%clk 0:00:52]}  Qe2 {[%clk 0:01:54]} 36. Qxe2 {[%clk 0:00:47]}  Rexe2 {[%clk 0:01:55]} 37. Bc1 {[%clk 0:00:46]}  Rg1 {[%clk 0:01:53]} 38. d5 {[%clk 0:00:42]}  cxd5 {[%clk 0:01:50]} 39. cxd5 {[%clk 0:00:42]}  Rd2 {[%clk 0:01:46]} 40. Rc4 {[%clk 0:00:40]}  Rxd5 {[%clk 0:01:46]} 41. Kc2 {[%clk 0:00:40]}  Rxg3 {[%clk 0:01:44]} 42. Rc8+ {[%clk 0:00:38]}  Kh7 {[%clk 0:01:44]} 0-1


[Site "https://www.chess.com"]

[Event "Titled Tuesday Blitz March 14 Early 2023"]
[White "Bennett, David"]
[Black "Maksimenko, Viktor"]
[WhiteFideId "2028271"]
[BlackFideId "13710478"]
[WhiteElo "2131"]
[BlackElo "2277"]
[Result "0-1"]
[Round "03"]
[TimeControl "180+2"]
[Date "2023.03.14"]
[WhiteClock "0:00:26"]
[BlackClock "0:01:27"]

1. f4 {[%clk 0:02:59]}  e5 {[%clk 0:02:58]} 2. fxe5 {[%clk 0:02:59]}  d6 {[%clk 0:02:58]} 3. exd6 {[%clk 0:02:58]}  Bxd6 {[%clk 0:02:59]} 4. Nf3 {[%clk 0:02:58]}  g5 {[%clk 0:02:59]} 5. g3 {[%clk 0:02:57]}  g4 {[%clk 0:03:00]} 6. Nh4 {[%clk 0:02:57]}  Ne7 {[%clk 0:03:00]} 7. d4 {[%clk 0:02:54]}  Ng6 {[%clk 0:03:00]} 8. Nxg6 {[%clk 0:02:52]}  hxg6 {[%clk 0:03:01]} 9. Qd3 {[%clk 0:02:52]}  Nc6 {[%clk 0:02:35]} 10. c3 {[%clk 0:02:33]}  Qe7 {[%clk 0:02:29]} 11. Bg2 {[%clk 0:02:19]}  Bd7 {[%clk 0:02:06]} 12. Nd2 {[%clk 0:02:09]}  O-O-O {[%clk 0:02:03]} 13. Ne4 {[%clk 0:01:53]}  Bf5 {[%clk 0:01:52]} 14. Nxd6+ {[%clk 0:01:48]}  Rxd6 {[%clk 0:01:53]} 15. Qb5 {[%clk 0:01:27]}  Re8 {[%clk 0:01:41]} 16. d5 {[%clk 0:01:01]}  a6 {[%clk 0:01:35]} 17. Qc4 {[%clk 0:00:56]}  Na5 {[%clk 0:01:35]} 18. Bg5 {[%clk 0:00:38]}  Nxc4 {[%clk 0:01:28]} 19. Bxe7 {[%clk 0:00:37]}  Rxe7 {[%clk 0:01:27]} 20. O-O-O {[%clk 0:00:26]}  Ne3 {[%clk 0:01:27]} 0-1


[Site "https://www.chess.com"]

[Event "Titled Tuesday Blitz March 14 Early 2023"]
[White "Kiseleva, Arina"]
[Black "Garv Gaur"]
[WhiteFideId "4164989"]
[BlackFideId "45030839"]
[WhiteElo "1756"]
[BlackElo "2068"]
[Result "1-0"]
[Round "03"]
[TimeControl "180+2"]
[Date "2023.03.14"]
[WhiteClock "0:00:17"]
[BlackClock "0:00:05"]

1. d4 {[%clk 0:03:00]}  Nf6 {[%clk 0:02:59]} 2. Nf3 {[%clk 0:02:57]}  e6 {[%clk 0:02:56]} 3. e3 {[%clk 0:02:56]}  b6 {[%clk 0:02:56]} 4. Bd3 {[%clk 0:02:56]}  Bb7 {[%clk 0:02:56]} 5. Nbd2 {[%clk 0:02:56]}  c5 {[%clk 0:02:55]} 6. O-O {[%clk 0:02:55]}  Be7 {[%clk 0:02:54]} 7. b3 {[%clk 0:02:55]}  O-O {[%clk 0:02:54]} 8. Bb2 {[%clk 0:02:55]}  d5 {[%clk 0:02:50]} 9. a3 {[%clk 0:02:53]}  Nc6 {[%clk 0:02:49]} 10. dxc5 {[%clk 0:02:52]}  bxc5 {[%clk 0:02:49]} 11. Ne5 {[%clk 0:02:52]}  Qc7 {[%clk 0:02:48]} 12. Ndf3 {[%clk 0:02:44]}  Rfd8 {[%clk 0:02:45]} 13. Nxc6 {[%clk 0:02:42]}  Bxc6 {[%clk 0:02:39]} 14. Ne5 {[%clk 0:02:42]}  Bb7 {[%clk 0:02:35]} 15. Ng4 {[%clk 0:02:02]}  c4 {[%clk 0:02:31]} 16. Nxf6+ {[%clk 0:01:59]}  Bxf6 {[%clk 0:02:30]} 17. Bxf6 {[%clk 0:01:59]}  gxf6 {[%clk 0:02:30]} 18. Qg4+ {[%clk 0:01:59]}  Kh8 {[%clk 0:02:24]} 19. bxc4 {[%clk 0:01:44]}  f5 {[%clk 0:02:24]} 20. Qd4+ {[%clk 0:01:41]}  Kg8 {[%clk 0:02:24]} 21. cxd5 {[%clk 0:01:31]}  Bxd5 {[%clk 0:02:13]} 22. Qf6 {[%clk 0:01:30]}  Qc6 {[%clk 0:02:05]} 23. Qg5+ {[%clk 0:01:16]}  Kf8 {[%clk 0:02:05]} 24. Qh6+ {[%clk 0:01:10]}  Ke7 {[%clk 0:02:05]} 25. Qh4+ {[%clk 0:01:06]}  Kd7 {[%clk 0:01:58]} 26. Rab1 {[%clk 0:01:05]}  Rab8 {[%clk 0:01:47]} 27. Qxh7 {[%clk 0:00:59]}  Bxg2 {[%clk 0:01:24]} 28. Qxf7+ {[%clk 0:00:57]}  Kd6 {[%clk 0:01:23]} 29. Rxb8 {[%clk 0:00:48]}  Rxb8 {[%clk 0:01:24]} 30. Rd1 {[%clk 0:00:45]}  Bd5 {[%clk 0:01:23]} 31. c4 {[%clk 0:00:41]}  Qa4 {[%clk 0:01:19]} 32. Be2 {[%clk 0:00:36]}  Qxd1+ {[%clk 0:00:24]} 33. Bxd1 {[%clk 0:00:33]}  Be4 {[%clk 0:00:24]} 34. Qxa7 {[%clk 0:00:30]}  Rb1 {[%clk 0:00:23]} 35. Qd4+ {[%clk 0:00:29]}  Ke7 {[%clk 0:00:22]} 36. Kf1 {[%clk 0:00:18]}  Bf3 {[%clk 0:00:22]} 37. Ke1 {[%clk 0:00:18]}  Kf7 {[%clk 0:00:15]} 38. h4 {[%clk 0:00:18]}  e5 {[%clk 0:00:15]} 39. Qd2 {[%clk 0:00:16]}  Kg6 {[%clk 0:00:14]} 40. a4 {[%clk 0:00:16]}  Kh5 {[%clk 0:00:14]} 41. Qc2 {[%clk 0:00:15]}  Rxd1+ {[%clk 0:00:03]} 42. Qxd1 {[%clk 0:00:15]}  Bxd1 {[%clk 0:00:03]} 43. Kxd1 {[%clk 0:00:16]}  Kxh4 {[%clk 0:00:04]} 44. c5 {[%clk 0:00:16]}  Kg5 {[%clk 0:00:04]} 45. c6 {[%clk 0:00:16]}  Kf6 {[%clk 0:00:04]} 46. c7 {[%clk 0:00:17]}  Ke7 {[%clk 0:00:05]} 1-0


[Site "https://www.chess.com"]

[Event "Titled Tuesday Blitz March 14 Early 2023"]
[White "Torres Dominguez, David"]
[Black "Vlassov, Nikolai"]
[WhiteFideId "2220857"]
[BlackFideId "4103360"]
[WhiteElo "1999"]
[BlackElo "2324"]
[Result "0-1"]
[Round "03"]
[TimeControl "180+2"]
[Date "2023.03.14"]
[WhiteClock "0:00:47"]
[BlackClock "0:00:32"]

1. e4 {[%clk 0:02:57]}  c5 {[%clk 0:02:59]} 2. Nc3 {[%clk 0:02:57]}  g6 {[%clk 0:02:58]} 3. d4 {[%clk 0:02:55]}  cxd4 {[%clk 0:02:57]} 4. Qxd4 {[%clk 0:02:56]}  Nf6 {[%clk 0:02:58]} 5. Bb5 {[%clk 0:02:56]}  Nc6 {[%clk 0:02:50]} 6. Bxc6 {[%clk 0:02:50]}  bxc6 {[%clk 0:02:50]} 7. e5 {[%clk 0:02:49]}  Nd5 {[%clk 0:02:42]} 8. Nxd5 {[%clk 0:02:46]}  cxd5 {[%clk 0:02:42]} 9. Qxd5 {[%clk 0:02:46]}  Rb8 {[%clk 0:02:42]} 10. e6 {[%clk 0:02:43]}  Bg7 {[%clk 0:02:10]} 11. exf7+ {[%clk 0:02:37]}  Kf8 {[%clk 0:02:09]} 12. c3 {[%clk 0:02:28]}  Bb7 {[%clk 0:02:02]} 13. Qg5 {[%clk 0:02:27]}  Kxf7 {[%clk 0:01:56]} 14. Ne2 {[%clk 0:02:18]}  Rf8 {[%clk 0:01:54]} 15. O-O {[%clk 0:02:14]}  Kg8 {[%clk 0:01:54]} 16. Qh4 {[%clk 0:02:03]}  Ba6 {[%clk 0:01:46]} 17. Re1 {[%clk 0:02:01]}  Qb6 {[%clk 0:01:38]} 18. b4 {[%clk 0:01:48]}  Qe6 {[%clk 0:01:19]} 19. Be3 {[%clk 0:01:42]}  Bxe2 {[%clk 0:01:07]} 20. Rxe2 {[%clk 0:01:42]}  Bxc3 {[%clk 0:01:04]} 21. Rc1 {[%clk 0:01:40]}  Rxb4 {[%clk 0:01:01]} 22. Qg3 {[%clk 0:01:16]}  Be5 {[%clk 0:00:54]} 23. Qg5 {[%clk 0:01:09]}  Rg4 {[%clk 0:00:46]} 24. Qh6 {[%clk 0:01:02]}  Bf6 {[%clk 0:00:38]} 25. h3 {[%clk 0:00:47]}  Rh4 {[%clk 0:00:32]} 0-1


[Site "https://www.chess.com"]